bitfinex-derivatives/quotes_SOLF0:USTF0_20250127
["timestamp","ask_amount","ask_price","bid_price","bid_amount"]
[1738004215138,4.4518,224.73,224.62,27.12860133]
[1738004215438,30.44860133,224.84,224.59,1.5859]
[1738004215439,0.03350013,224.7,224.65,0.03183673]
[1738004215733,4.4522,224.71,224.65,4.4533]
[1738004216037,0.03401594,224.7,224.65,0.02828578]
[1738004216234,27.12860133,224.81,224.59,1.5859]
[1738004216436,0.03125175,224.7,224.65,27.16019522]
[1738004216636,27.12860133,224.8,224.6,27.12860133]
[1738004216837,0.03095195,224.67,224.65,4.4533]
[1738004217037,27.12860133,224.8,224.6,27.12860133]
[1738004217340,0.03061232,224.68,224.64,0.02823687]
[1738004217540,27.12860133,224.8,224.6,27.12860133]
[1738004217735,10.5229,224.87,224.64,0.0288482]
[1738004217736,0.03003243,224.68,224.64,0.0288482]
[1738004217941,3.32,224.75,224.59,1.5859]
[1738004218237,4.4533,224.65,224.64,0.03255265]
[1738004218940,4.4533,224.65,224.64,5.265e-05]
[1738004221044,4.4552,224.56,224.52,3.6273]
[1738004221441,27.12860133,224.62,224.52,3.6273]
[1738004221743,27.12860133,224.66,224.52,3.6273]
[1738004221943,1.6594,224.74,224.52,3.6273]
[1738004221944,27.12860133,224.7,224.52,3.6273]
[1738004222146,4.4544,224.6,224.57,0.03342935]
[1738004222339,4.4544,224.6,224.52,3.6273]
[1738004222647,4.4544,224.6,224.56,0.03020195]
[1738004223143,4.4549,224.57,224.56,1.95e-06]
[1738004227638,27.12860133,224.58,224.44,1.6593]
[1738004227843,27.12860133,224.52,224.44,1.6593]
[1738004228446,3.34,224.59,224.44,1.6593]
[1738004228647,4.4554,224.55,224.44,1.6593]
[1738004228841,0.03367276,224.54,224.49,0.0304384]
[1738004230844,4.4561,224.52,224.49,0.0304384]
[1738004231146,0.03367276,224.54,224.49,0.0304384]
[1738004231347,4.4558,224.53,224.49,0.0304384]
[1738004231548,0.03367276,224.54,224.49,0.0304384]
[1738004231948,4.4563,224.5,224.49,0.0304384]
[1738004232146,27.12860133,224.53,224.32,27.12860133]
[1738004232346,4.4579,224.42,224.33,1.6457]
[1738004232542,16.79075001,224.47,224.33,1.6457]
[1738004232941,1.6665,224.53,224.33,1.6457]
[1738004232942,16.79075001,224.51,224.33,1.6457]
[1738004233349,16.79075001,224.51,224.4,0.03184333]
[1738004233350,0.0328695,224.44,224.4,0.03184333]
[1738004234947,16.79075001,224.51,224.4,0.03184333]
[1738004234948,16.79075001,224.55,224.4,0.03184333]
[1738004235250,16.79075001,224.55,224.34,16.79075001]
[1738004235847,4.4568,224.48,224.34,16.79075001]
[1738004236246,0.03359075,224.43,224.39,0.03150293]
[1738004236444,16.79075001,224.51,224.34,16.79075001]
[1738004236647,0.03073901,224.43,224.39,0.02957022]
[1738004236951,0.03073901,224.43,224.4,4.4583]
[1738004237551,16.79075001,224.59,224.39,0.02957022]
[1738004237751,16.79075001,224.55,224.38,16.79075001]
[1738004237951,16.79075001,224.51,224.34,16.79075001]
[1738004238753,0.03100026,224.45,224.4,0.03068338]
[1738004241648,0.03100026,224.45,224.42,4.4579]
[1738004242154,0.03100026,224.45,224.4,0.03068338]
[1738004242155,0.03100026,224.45,224.43,4.4577]
[1738004242555,0.03100026,224.45,224.41,3.612]
[1738004242849,0.03100026,224.45,224.42,4.4579]
[1738004243156,0.00604467,224.45,224.4,0.03068338]
[1738004244156,4.46354467,224.45,224.4,0.03068338]
[1738004244755,0.00604467,224.45,224.4,0.03068338]
[1738004245150,16.79075001,224.43,224.4,8.338e-05]
[1738004245351,4.4581,224.41,224.4,8.338e-05]
[1738004246155,0.00604467,224.45,224.4,8.338e-05]
[1738004246361,16.79075001,224.43,224.4,8.338e-05]
[1738004246748,4.4581,224.41,224.4,8.338e-05]
[1738004248452,0.00604467,224.45,224.4,8.338e-05]
[1738004248755,16.79075001,224.43,224.4,8.338e-05]
[1738004249255,4.4581,224.41,224.4,8.338e-05]
[1738004249457,16.79075001,224.43,224.4,8.338e-05]
[1738004249751,4.4581,224.41,224.4,8.338e-05]
[1738004251660,4.4579,224.42,224.4,8.338e-05]
[1738004251967,0.00604467,224.45,224.4,8.338e-05]
[1738004252161,4.4581,224.41,224.4,8.338e-05]
[1738004252764,16.79075001,224.43,224.26,181.4115792]
[1738004253064,16.79075001,224.35,224.26,181.4115792]
[1738004253361,4.4603,224.3,224.26,181.4115792]
[1738004253760,4.4601,224.31,224.26,181.4115792]
[1738004253967,0.03228683,224.3,224.26,181.44459252]
[1738004255266,20.13075001,224.39,224.26,0.03301332]
[1738004255566,16.79075001,224.43,224.26,0.03301332]
[1738004255759,4.4581,224.41,224.23,3.3667]
[1738004256364,0.03031318,224.34,224.3,0.03321145]
[1738004256565,16.79075001,224.43,224.3,0.03321145]
[1738004256867,16.79075001,224.47,224.3,0.03321145]
[1738004257062,16.79075001,224.47,224.26,16.79075001]
[1738004257565,4.4575,224.44,224.36,4.459]
[1738004257762,3.5798,224.56,224.26,16.79075001]
[1738004257763,16.79075001,224.51,224.37,1.615]
[1738004257967,16.79075001,224.51,224.38,1.9615]
[1738004258363,16.79075001,224.55,224.38,1.9615]
[1738004258764,4.4576,224.44,224.38,1.9615]
[1738004258964,0.02914564,224.49,224.44,2.804e-05]
[1738004259164,16.79075001,224.45,224.27,1.6914]
[1738004259360,4.4589,224.37,224.27,1.6914]
[1738004259571,16.79075001,224.41,224.27,1.6914]
[1738004260164,4.4591,224.36,224.27,6.1522]
[1738004260468,0.03312136,224.36,224.32,0.0295565]
[1738004260869,1.6908,224.5,224.32,0.0295565]
[1738004261070,16.79075001,224.51,224.3,16.79075001]
[1738004261766,16.79075001,224.51,224.27,1.6914]
[1738004261968,16.79075001,224.46,224.27,1.6914]
[1738004262270,0.03070882,224.41,224.37,7.805e-05]
[1738004262474,16.79075001,224.42,224.27,1.6914]
[1738004262866,4.4587,224.38,224.3,4.4602]
[1738004263372,0.03090747,224.36,224.32,0.03005275]
[1738004264569,4.4597,224.33,224.32,5.275e-05]
[1738004264772,4.4597,224.33,224.18,228.51208786]
[1738004264773,16.79075001,224.33,224.18,181.4115792]
[1738004264972,16.79075001,224.23,224.18,166.9184792]
[1738004265171,16.79075001,224.19,224.18,142.0511792]
[1738004265370,16.79075001,224.19,224.18,127.4644792]
[1738004265579,16.79075001,224.19,224.16,369.3465848]
[1738004266277,0.02807013,224.2,224.16,369.3465848]
[1738004267981,0.02807013,224.2,224.15,0.03106767]
[1738004268582,27.34225262,224.19,224.15,0.03106767]
[1738004269075,0.02807013,224.2,224.15,0.03106767]
[1738004270783,0.02807013,224.2,224.16,4.463]
[1738004272188,0.02807013,224.2,224.15,0.03106767]
[1738004272387,0.02807013,224.2,224.18,4.4626]
[1738004273589,27.34225262,224.29,224.15,0.03106767]
[1738004273783,27.34225262,224.29,224.11,27.34225262]
[1738004274581,0.54775,224.32,224.29,4.4603]
[1738004275089,0.54775,224.32,224.29,4.4604]
[1738004275284,0.54775,224.32,224.28,0.03369848]
[1738004275688,0.54775,224.32,224.31,4.4601]
[1738004277884,0.54775,224.32,224.29,4.4603]
[1738004278389,0.54775,224.32,224.28,0.03369848]
[1738004278985,0.54775,224.32,224.29,4.4604]
[1738004279286,0.02996219,224.33,224.28,0.03369848]
[1738004279688,0.02996219,224.33,224.32,4.4599]
[1738004280693,0.8513,224.5,224.28,0.03369848]
[1738004280694,4.4584,224.4,224.28,0.03369848]
[1738004280987,27.34225262,224.45,224.23,27.34225262]
[1738004281690,0.03190649,224.36,224.32,0.0336354]
[1738004281993,27.34225262,224.45,224.35,4.4591]
[1738004282193,0.02913821,224.36,224.23,27.34225262]
[1738004282488,27.34225262,224.37,224.27,4.4607]
[1738004282885,27.34225262,224.33,224.2,3.0131]
[1738004283589,0.02941445,224.29,224.24,0.03170816]
[1738004287486,0.02941445,224.29,224.07,1.5142]
[1738004287692,4.4614,224.25,224.16,4.4629]
[1738004287993,27.34225262,224.3,224.1,27.34225262]
[1738004288195,4.4607,224.29,224.16,4.4631]
[1738004288493,0.02830056,224.25,224.2,0.02942427]
[1738004288894,0.02830056,224.25,224.2,4.49162427]
[1738004289091,0.02830056,224.25,224.2,0.02942427]
[1738004289493,0.02830056,224.25,224.21,4.462]
[1738004289691,0.02830056,224.25,224.2,0.02942427]
[1738004289997,4.4593,224.36,224.2,0.02942427]
[1738004290188,16.81624587,224.37,224.18,2.6738]
[1738004290389,16.81624587,224.37,224.19,1.6635]
[1738004290588,4.4593,224.35,224.29,4.4603]
[1738004290996,0.03096811,224.34,224.3,0.03039834]
[1738004292395,16.81624587,224.33,224.3,0.03039834]
[1738004292592,4.4601,224.31,224.3,0.03039834]
[1738004293799,4.4605,224.29,224.21,4.462]
[1738004293995,4.4605,224.29,224.19,1.6635]
[1738004294200,16.81624587,224.33,224.21,4.462]
[1738004294400,4.461,224.27,224.19,1.6635]
[1738004294896,4.461,224.27,224.2,4.4622]
[1738004295101,0.03012819,224.25,224.21,0.0336587]
[1738004295994,16.81624587,224.38,224.21,0.0336587]
[1738004296204,0.8823,224.43,224.25,16.81624587]
[1738004296399,0.7108,224.49,224.26,2.8475]
[1738004297201,0.03023047,224.37,224.33,0.0309764]
[1738004297594,0.7108,224.49,224.4,4.4582]
[1738004297797,0.7108,224.49,224.29,16.81624587]
[1738004298095,16.81624587,224.51,224.29,16.81624587]
[1738004298302,17.94963044,224.57,224.43,16.81624587]
[1738004298604,0.02849585,224.51,224.47,0.03336265]
[1738004298795,0.02849585,224.51,224.47,4.49016265]
[1738004299198,0.02849585,224.51,224.47,0.03336265]
[1738004300798,0.02849585,224.51,224.47,4.49016265]
[1738004301199,0.02849585,224.51,224.47,0.03336265]
[1738004301401,0.02849585,224.51,224.48,4.4566]
[1738004301605,0.02849585,224.51,224.47,0.03336265]
[1738004303603,16.81624587,224.5,224.35,1.3325]
[1738004303794,20.15624587,224.59,224.41,16.81624587]
[1738004304400,20.15624587,224.59,224.46,4.457]
[1738004304694,0.0323198,224.55,224.5,0.03053763]
[1738004305403,4.4555,224.54,224.5,0.03053763]
[1738004306106,4.456,224.52,224.5,0.03053763]
[1738004306306,0.0323198,224.55,224.5,0.03053763]
[1738004306695,4.4558,224.53,224.5,0.03053763]
[1738004306898,0.0323198,224.55,224.5,0.03053763]
[1738004308906,4.4561,224.52,224.5,0.03053763]
[1738004309106,0.0323198,224.55,224.5,0.03053763]
[1738004309798,4.4561,224.52,224.5,0.03053763]
[1738004311006,4.4561,224.51,224.5,0.03053763]
[1738004312107,16.84856567,224.55,224.42,1.5228]
[1738004312308,16.81624587,224.47,224.36,2.9672]
[1738004312508,20.15624587,224.47,224.3,1.3294]
[1738004312710,4.4587,224.38,224.3,2.6588]
[1738004313109,20.15624587,224.47,224.3,2.6588]
[1738004313305,0.03034094,224.36,224.32,0.03405297]
[1738004313508,16.81624587,224.43,224.3,2.6588]
[1738004313712,0.03061059,224.36,224.32,0.03118185]
[1738004313914,4.4593,224.35,224.32,0.03118185]
[1738004314107,0.03061059,224.36,224.32,0.03118185]
[1738004314809,4.48971059,224.36,224.32,0.03118185]
[1738004315014,0.03061059,224.36,224.32,0.03118185]
[1738004315509,16.81624587,224.47,224.32,0.03118185]
[1738004315711,16.81624587,224.47,224.3,1.3294]
[1738004316115,4.4579,224.43,224.35,4.4592]
[1738004316314,16.81624587,224.47,224.35,4.4592]
[1738004316617,0.03119735,224.43,224.39,0.02933339]
[1738004316913,4.4579,224.42,224.39,0.02933339]
[1738004318211,4.4583,224.4,224.39,0.02933339]
[1738004318915,0.03119735,224.43,224.39,0.02933339]
[1738004319117,4.4583,224.4,224.39,0.02933339]
[1738004320816,0.03119735,224.43,224.39,0.02933339]
[1738004321811,4.4582,224.41,224.39,0.02933339]
[1738004322420,4.4583,224.4,224.39,0.02933339]
[1738004322611,0.03119735,224.43,224.39,0.02933339]
[1738004323519,4.48899735,224.43,224.39,0.02933339]
[1738004323918,0.03119735,224.43,224.39,0.02933339]
[1738004325620,0.03119735,224.43,224.42,4.4579]
[1738004325920,0.03119735,224.43,224.39,0.02933339]
[1738004328128,4.4579,224.42,224.39,0.02933339]
[1738004328329,0.03119735,224.43,224.39,0.02933339]
[1738004329331,4.48889735,224.43,224.39,0.02933339]
[1738004330831,0.03119735,224.43,224.39,0.02933339]
[1738004331526,0.03119735,224.43,224.42,4.4579]
[1738004331736,16.81624587,224.55,224.39,0.02933339]
[1738004331935,16.81624587,224.55,224.34,2.9361]
[1738004332338,4.4569,224.48,224.43,4.4575]
[1738004332736,16.81624587,224.55,224.34,2.9361]
[1738004332930,4.4571,224.46,224.43,0.03324744]
[1738004334941,0.0329599,224.48,224.43,0.03324744]
[1738004335643,4.4569,224.47,224.43,0.03324744]
[1738004336139,0.0329599,224.48,224.43,0.03324744]
[1738004336638,16.81624587,224.59,224.43,0.03324744]
[1738004336836,16.81624587,224.59,224.42,1.3957]
[1738004337237,4.455,224.57,224.52,4.4557]
[1738004337438,18.46194587,224.63,224.52,4.4557]
[1738004337638,18.46194587,224.63,224.42,1.3957]
[1738004337834,0.02822199,224.6,224.55,0.03059561]
[1738004338033,0.03016029,224.55,224.5,0.03221276]
[1738004338232,4.48546029,224.55,224.49,4.4565]
[1738004338541,0.03016029,224.55,224.5,0.028181]
[1738004338735,0.03016029,224.55,224.52,4.4557]
[1738004338942,0.03016029,224.55,224.5,0.028181]
[1738004339439,0.03016029,224.55,224.51,4.4561]
[1738004339841,0.03016029,224.55,224.5,0.028181]
[1738004340239,3.87475268,224.68,224.5,0.028181]
[1738004340543,3.87475268,224.68,224.49,16.81624587]
[1738004341141,3.87475268,224.68,224.53,16.81624587]
[1738004341342,0.03168306,224.61,224.6,4.4542]
[1738004341541,3.87475268,224.68,224.6,4.4542]
[1738004341742,4.4529,224.67,224.6,4.4542]
[1738004341942,3.87475268,224.68,224.58,4.4545]
[1738004342143,3.87475268,224.68,224.55,1.3946]
[1738004342543,4.4536,224.64,224.58,4.4547]
[1738004342744,4.48172474,224.64,224.59,0.03350578]
[1738004342945,0.02812474,224.64,224.6,4.4542]
[1738004343448,0.02812474,224.64,224.63,4.4537]
[1738004344243,1.6778,224.76,224.59,0.03350578]
[1738004344547,34.7908477,224.88,224.65,16.81624587]
[1738004344744,34.7908477,224.88,224.69,16.81624587]
[1738004344942,17.97460183,224.88,224.73,16.81624587]
[1738004345151,20.13624587,224.92,224.73,16.81624587]
[1738004345348,4.4486,224.9,224.74,1.5387]
[1738004345643,16.81624587,224.92,224.8,0.03222597]
[1738004346148,16.81624587,224.88,224.8,0.03222597]
[1738004346447,16.81624587,224.84,224.74,1.5387]
[1738004346648,16.81624587,224.84,224.82,0.03356672]
[1738004346845,4.4506,224.79,224.67,4.4528]
[1738004347051,16.81624587,224.76,224.65,1.5469]
[1738004347443,4.4514,224.75,224.65,6.0001]
[1738004347954,0.03098199,224.72,224.68,0.02850674]
[1738004348145,0.03098199,224.72,224.66,4.4531]
[1738004348345,0.03105506,224.71,224.66,4.4834254]
[1738004348552,0.03105506,224.71,224.66,0.0303254]
[1738004349850,4.4528,224.68,224.66,0.0303254]
[1738004352848,4.4538,224.63,224.53,4.4555]
[1738004353054,16.81624587,224.68,224.52,1.3616]
[1738004353752,1.023,224.7,224.52,1.3616]
[1738004354143,0.03265866,224.63,224.59,0.0289759]
[1738004355254,4.4543,224.6,224.59,0.0289759]
[1738004358752,4.48635866,224.63,224.59,0.0289759]
[1738004359561,0.03265866,224.63,224.59,0.0289759]
[1738004359858,4.4539,224.62,224.59,0.0289759]
[1738004360865,0.03265866,224.63,224.59,0.0289759]
[1738004363069,0.03265866,224.63,224.62,4.4539]
[1738004363665,3.32,224.75,224.63,4.4535]
[1738004364064,4.452,224.72,224.56,1.3819]
[1738004364267,16.81624587,224.85,224.63,16.81624587]
[1738004364563,4.4505,224.8,224.64,1.5969]
[1738004364765,0.03029661,224.76,224.74,4.4515]
[1738004364961,20.13624587,224.85,224.74,4.4515]
[1738004365164,0.03288847,224.77,224.74,4.4515]
[1738004365366,20.13624587,224.85,224.74,4.4515]
[1738004365669,0.03288847,224.78,224.73,0.03221203]
[1738004366464,0.03288847,224.78,224.73,4.48391203]
[1738004366769,0.03288847,224.78,224.73,0.03221203]
[1738004367569,0.03288847,224.78,224.73,4.48391203]
[1738004368473,0.03288847,224.78,224.73,0.03221203]
[1738004369870,4.451,224.77,224.73,0.03221203]
[1738004371270,4.4513,224.75,224.73,0.03221203]
[1738004371464,0.03288847,224.78,224.73,0.03221203]
[1738004371865,0.03288847,224.78,224.76,4.4511]
[1738004372464,0.03288847,224.78,224.77,4.4509]
[1738004374175,16.81624587,224.89,224.77,4.4508]
[1738004374467,16.81624587,224.89,224.7,16.81624587]
[1738004374677,16.81624587,224.85,224.69,1.4129]
[1738004375170,16.81624587,224.85,224.75,0.02850665]
[1738004375377,4.451,224.77,224.75,0.02850665]
[1738004375576,16.81624587,224.85,224.75,0.02850665]
[1738004376176,4.45,224.82,224.75,0.02850665]
[1738004376478,16.81624587,224.85,224.75,0.02850665]
[1738004376673,4.45,224.82,224.75,0.02850665]
[1738004376977,16.81624587,224.85,224.75,0.02850665]
[1738004377277,16.81624587,224.81,224.75,0.02850665]
[1738004377577,16.81624587,224.81,224.69,1.4129]
[1738004377778,4.4507,224.79,224.76,0.03060922]
[1738004377974,16.81624587,224.85,224.76,0.03060922]
[1738004378175,16.81624587,224.85,224.69,1.4129]
[1738004378374,4.4505,224.79,224.78,0.02831059]
[1738004378578,16.81624587,224.85,224.78,0.02831059]
[1738004378876,4.4502,224.81,224.78,0.02831059]
[1738004380573,16.81624587,224.85,224.78,0.02831059]
[1738004381680,4.4505,224.8,224.78,0.02831059]
[1738004382679,4.4502,224.81,224.78,0.02831059]
[1738004383093,16.81624587,224.85,224.78,0.02831059]
[1738004383311,16.81624587,224.89,224.78,0.02831059]
[1738004384811,16.81624587,224.85,224.78,0.02831059]
[1738004385118,16.81624587,224.81,224.68,1.3957]
[1738004385412,4.452,224.72,224.65,4.4532]
[1738004385614,4.452,224.72,224.63,2.8269]
[1738004385819,4.4526,224.69,224.63,2.8269]
[1738004386016,16.81624587,224.73,224.54,16.81624587]
[1738004386316,4.4528,224.68,224.58,4.4547]
[1738004386619,0.02831059,224.66,224.61,0.03386239]
[1738004387415,0.02831059,224.66,224.63,4.4536]
[1738004387816,0.02831059,224.66,224.61,0.03386239]
[1738004388111,16.81624587,224.77,224.61,0.03386239]
[1738004388316,3.32,224.79,224.58,16.81624587]
[1738004388518,4.4518,224.73,224.58,16.81624587]
[1738004388904,3.32,224.79,224.58,16.81624587]
[1738004389206,3.32,224.79,224.66,0.0323326]
[1738004389707,3.32,224.79,224.67,4.4529]
[1738004390207,16.81624587,224.81,224.71,0.03395113]
[1738004390399,16.81624587,224.81,224.7,4.4523]
[1738004390599,16.81624587,224.81,224.74,0.02874636]
[1738004390993,16.81624587,224.85,224.74,0.02874636]
[1738004391287,16.81624587,224.81,224.74,0.02874636]
[1738004393186,1.7351,224.87,224.74,0.02874636]
[1738004393387,4.4503,224.81,224.74,0.02874636]
[1738004394089,4.4504,224.8,224.74,0.02874636]
[1738004394591,4.45,224.82,224.74,4.48024636]
[1738004394791,16.81624587,224.85,224.74,0.02874636]
[1738004395086,4.45,224.82,224.74,4.48014636]
[1738004395483,4.45,224.82,224.74,0.02874636]
[1738004395689,20.13624587,224.89,224.74,0.02874636]
[1738004395883,20.13624587,224.89,224.66,16.81624587]
[1738004396085,16.81624587,224.89,224.79,0.03269385]
[1738004396289,4.4492,224.86,224.79,0.03269385]
[1738004396795,16.81624587,224.89,224.79,0.03269385]
[1738004396994,4.449,224.87,224.79,0.03269385]
[1738004397200,16.81624587,224.89,224.79,0.03269385]
[1738004398096,16.81624587,224.89,224.8,4.4503]
[1738004398497,4.4485,224.9,224.82,4.45]
[1738004398698,3.32,224.93,224.71,2.9318]
[1738004398994,3.32,224.93,224.84,0.03169446]
[1738004399198,4.4486,224.89,224.84,0.03169446]
[1738004399397,20.13624587,224.95,224.84,0.03169446]
[1738004399794,16.81624587,224.95,224.84,0.03169446]
[1738004400098,3.32,224.94,224.84,0.03169446]
[1738004400301,4.448,224.92,224.84,4.48109446]
[1738004400496,20.13624587,224.99,224.84,0.03169446]
[1738004400798,16.81624587,224.99,224.78,16.81624587]
[1738004400996,16.81624587,224.99,224.89,0.0294713]
[1738004401497,16.81624587,225.07,224.89,0.0294713]
[1738004401694,16.81624587,225.07,224.9,16.81624587]
[1738004401894,4.4453,225.06,224.97,4.4468]
[1738004402099,4.4453,225.06,224.96,0.03037928]
[1738004402599,4.4446,225.09,224.99,4.4465]
[1738004402799,16.81624587,225.11,224.96,0.03037928]
[1738004402999,16.81624587,225.11,224.9,16.81624587]
[1738004403298,16.81624587,225.11,225.01,0.03055375]
[1738004403700,16.81624587,225.03,224.88,4.4487]
[1738004403902,16.81624587,224.99,224.88,4.4487]
[1738004404096,16.81624587,224.99,224.87,4.2265]
[1738004404297,16.81624587,225.04,224.87,4.2265]
[1738004404593,3.32,225.12,224.87,4.2265]
[1738004404594,16.81624587,225.08,224.92,16.81624587]
[1738004404998,0.03055375,224.98,224.93,0.0283239]
[1738004405199,0.03055375,224.98,224.87,4.2265]
[1738004405399,16.81624587,225.0,224.95,0.02865955]
[1738004405595,0.02943029,224.95,224.87,4.2265]
[1738004405802,4.4472,224.96,224.95,0.03106338]
[1738004405995,16.81624587,225.0,224.87,4.2265]
[1738004406197,0.03055375,224.98,224.93,0.02996395]
[1738004407001,4.47745375,224.98,224.93,0.02996395]
[1738004407402,0.03055375,224.98,224.93,0.02996395]
[1738004408598,0.03055375,224.98,224.96,4.4471]
[1738004408799,16.81624587,225.06,224.93,0.02996395]
[1738004409303,16.81624587,225.14,224.96,16.81624587]
[1738004409503,16.81624587,225.1,224.97,1.4146]
[1738004409703,16.81624587,225.1,224.98,4.4466]
[1738004410004,16.81624587,225.1,224.97,1.4146]
[1738004410203,16.81624587,225.1,225.02,0.03003605]
[1738004410698,16.81624587,225.06,225.02,0.03003605]
[1738004411103,16.81624587,225.06,224.87,1.3489]
[1738004411104,4.4476,224.95,224.89,1.4146]
[1738004411295,4.4476,224.95,224.87,1.3489]
[1738004411599,16.81624587,224.99,224.87,1.3489]
[1738004412501,0.03003605,224.95,224.91,0.02933092]
[1738004412902,16.81624587,224.99,224.87,1.3489]
[1738004413107,0.03003605,224.95,224.91,0.02858348]
[1738004413999,0.03003605,224.95,224.94,4.4476]
[1738004414602,4.4462,225.02,224.95,4.4473]
[1738004414797,16.81624587,225.06,224.95,4.4473]
[1738004415204,4.4458,225.04,224.95,4.4473]
[1738004415706,4.4458,225.04,224.97,0.03156711]
[1738004415899,16.81624587,225.06,224.97,0.03156711]
[1738004416500,16.81624587,225.06,225.0,4.4463]
[1738004416806,16.81624587,225.1,224.97,0.03156711]
[1738004417103,0.6477,225.13,224.92,16.81624587]
[1738004417406,16.81624587,225.14,225.01,0.03138044]
[1738004417803,16.81624587,225.18,225.01,0.03138044]
[1738004418101,4.4351,225.21,225.01,4.4462]
[1738004418102,4.4449,225.08,225.01,4.4462]
[1738004418404,4.4449,225.08,224.93,1.3488]
[1738004418405,4.4449,225.08,225.07,0.03239887]
[1738004418605,16.81624587,225.1,224.98,4.4468]
[1738004418606,4.4451,225.07,224.98,4.4468]
[1738004418906,16.81624587,225.06,224.93,1.3488]
[1738004419306,4.4458,225.03,224.95,4.4473]
[1738004419506,4.4458,225.03,224.93,1.3488]
[1738004419702,0.03188458,225.01,224.97,4.47727819]
[1738004419904,0.03188458,225.01,224.97,0.03037819]
[1738004421102,16.81624587,224.98,224.88,1.3797]
[1738004421407,16.81624587,224.94,224.74,1.4684]
[1738004421704,16.81624587,224.94,224.75,2.812]
[1738004421905,4.4487,224.89,224.8,4.4503]
[1738004422205,16.81624587,224.94,224.8,4.4503]
[1738004422406,0.03012257,224.87,224.82,0.03209271]
[1738004422602,4.4496,224.84,224.75,2.812]
[1738004422904,4.4496,224.84,224.82,0.03172449]
[1738004423105,4.4496,224.84,224.75,2.812]
[1738004423300,16.84496069,224.85,224.81,0.02961246]
[1738004423807,0.02871482,224.85,224.81,0.02961246]
[1738004424905,16.84496069,224.85,224.81,0.02961246]
[1738004426912,0.02871482,224.85,224.81,0.02961246]
[1738004428206,0.02871482,224.85,224.84,4.4496]
[1738004429816,0.02871482,224.85,224.81,0.02961246]
[1738004430212,16.81624587,224.82,224.74,4.4515]
[1738004430512,16.81624587,224.82,224.68,1.4593]
[1738004430811,16.81624587,224.87,224.68,1.4593]
[1738004431016,20.68414556,225.06,224.82,16.81624587]
[1738004431315,1.1206,225.05,224.9,16.81624587]
[1738004431513,3.86789969,225.06,224.92,0.03029421]
[1738004431514,0.03102659,224.96,224.92,0.03029421]
[1738004431814,3.86789969,225.06,224.94,4.4474]
[1738004432016,0.03357873,224.96,224.92,0.03217401]
[1738004432216,39.2353477,225.1,224.9,16.81624587]
[1738004432414,17.97460183,225.1,225.04,4.4456]
[1738004432717,17.97460183,225.1,225.03,16.81624587]
[1738004432911,1.118,225.22,225.03,16.81624587]
[1738004433218,16.81624587,225.19,224.98,16.81624587]
[1738004433515,0.0280725,225.15,225.1,0.03004725]
[1738004434117,0.0280725,225.15,225.11,4.4442]
[1738004434314,0.0280725,225.15,225.1,0.03004725]
[1738004434916,0.0280725,225.15,225.1,4.47434725]
[1738004435217,0.0280725,225.15,225.1,0.03004725]
[1738004435908,0.0280725,225.15,225.1,16.84629312]
[1738004436115,3.3,225.3,225.1,16.84629312]
[1738004436314,3.3,225.3,225.1,16.81624587]
[1738004436512,1.7684,225.33,225.15,16.81624587]
[1738004436911,17.97460183,225.34,225.15,16.81624587]
[1738004437113,17.97460183,225.34,225.22,0.02896577]
[1738004437318,0.030224,225.27,225.22,0.02896577]
[1738004437817,0.030224,225.27,225.25,4.4414]
[1738004438418,0.030224,225.27,225.23,4.4418]
[1738004438721,0.030224,225.27,225.22,0.02896577]
[1738004440025,0.030224,225.27,225.24,4.4416]
[1738004440725,0.030224,225.27,225.22,4.47086577]
[1738004441125,0.030224,225.27,225.22,0.02896577]
[1738004443126,0.030224,225.27,225.25,4.4413]
[1738004443530,3.86364941,225.36,225.22,0.02896577]
[1738004443531,3.86364941,225.36,225.23,27.06588223]
[1738004443733,3.3,225.44,225.27,27.06588223]
[1738004443934,27.06588223,225.47,225.27,27.06588223]
[1738004444128,3.3,225.45,225.27,27.06588223]
[1738004444428,27.06588223,225.43,225.23,27.06588223]
[1738004444729,27.06588223,225.43,225.31,0.03272523]
[1738004444921,0.6446,225.44,225.31,0.03272523]
[1738004445124,27.06588223,225.47,225.31,0.03272523]
[1738004445323,0.6446,225.56,225.38,27.06588223]
[1738004445524,0.6446,225.56,225.42,27.06588223]
[1738004445928,0.6446,225.56,225.47,0.0317555]
[1738004446124,5.08,225.56,225.47,0.0317555]
[1738004446435,27.06588223,225.52,225.3,27.06588223]
[1738004447528,0.0317555,225.43,225.39,0.03391224]
[1738004447823,0.81283058,225.55,225.35,27.06588223]
[1738004448028,0.02831428,225.43,225.39,0.03393539]